[Event "Titled Tuesday Blitz June 14 Late 2022"]
[White "Rychkov, Roman"]
[Black "Kohler, Aran"]
[WhiteFideId "30985595"]
[BlackFideId "1002856"]
[WhiteElo "2327"]
[BlackElo "2251"]
[Result "1-0"]
[Round "09"]
[TimeControl "180+1"]
[Date "2022.06.15"]
[WhiteClock "0:00:10"]
[BlackClock "0:00:06"]

1. e4 {[%clk 0:03:00]}  d6 {[%clk 0:02:59]} 2. d4 {[%clk 0:03:01]}  Nf6 {[%clk 0:02:59]} 3. Nc3 {[%clk 0:03:00]}  g6 {[%clk 0:03:00]} 4. f4 {[%clk 0:03:00]}  Bg7 {[%clk 0:02:59]} 5. e5 {[%clk 0:02:58]}  dxe5 {[%clk 0:02:58]} 6. fxe5 {[%clk 0:02:59]}  Nd5 {[%clk 0:02:53]} 7. Bc4 {[%clk 0:02:58]}  Nxc3 {[%clk 0:02:49]} 8. bxc3 {[%clk 0:02:59]}  O-O {[%clk 0:02:47]} 9. Qf3 {[%clk 0:02:57]}  c6 {[%clk 0:02:42]} 10. Ne2 {[%clk 0:02:56]}  Be6 {[%clk 0:02:33]} 11. Bxe6 {[%clk 0:02:42]}  fxe6 {[%clk 0:02:33]} 12. Qh3 {[%clk 0:02:34]}  Qd5 {[%clk 0:02:29]} 13. Rf1 {[%clk 0:01:57]}  Rxf1+ {[%clk 0:02:26]} 14. Kxf1 {[%clk 0:01:58]}  Na6 {[%clk 0:02:22]} 15. Qd3 {[%clk 0:01:29]}  Rf8+ {[%clk 0:02:18]} 16. Kg1 {[%clk 0:01:30]}  b5 {[%clk 0:02:10]} 17. Nf4 {[%clk 0:01:25]}  Qd7 {[%clk 0:02:10]} 18. Qh3 {[%clk 0:01:24]}  Nc7 {[%clk 0:02:09]} 19. a4 {[%clk 0:01:22]}  a6 {[%clk 0:02:08]} 20. axb5 {[%clk 0:01:21]}  cxb5 {[%clk 0:02:08]} 21. Qg4 {[%clk 0:00:57]}  Rf5 {[%clk 0:02:02]} 22. Bd2 {[%clk 0:00:30]}  Qc6 {[%clk 0:01:44]} 23. Nd3 {[%clk 0:00:19]}  Rf8 {[%clk 0:01:32]} 24. h4 {[%clk 0:00:13]}  Kh8 {[%clk 0:01:25]} 25. h5 {[%clk 0:00:14]}  gxh5 {[%clk 0:01:25]} 26. Qxh5 {[%clk 0:00:15]}  Qe8 {[%clk 0:01:24]} 27. Qxe8 {[%clk 0:00:14]}  Rxe8 {[%clk 0:01:24]} 28. Nc5 {[%clk 0:00:15]}  Ra8 {[%clk 0:01:23]} 29. Ra5 {[%clk 0:00:15]}  h5 {[%clk 0:01:20]} 30. Bg5 {[%clk 0:00:15]}  Bf8 {[%clk 0:01:18]} 31. Nd7 {[%clk 0:00:16]}  Kg8 {[%clk 0:01:15]} 32. Nc5 {[%clk 0:00:08]}  Kf7 {[%clk 0:01:14]} 33. Kf2 {[%clk 0:00:07]}  Kg6 {[%clk 0:01:13]} 34. Bh4 {[%clk 0:00:07]}  Kf7 {[%clk 0:01:07]} 35. Ke3 {[%clk 0:00:07]}  Bh6+ {[%clk 0:01:06]} 36. Kd3 {[%clk 0:00:07]}  Ke8 {[%clk 0:01:05]} 37. c4 {[%clk 0:00:03]}  bxc4+ {[%clk 0:01:02]} 38. Kxc4 {[%clk 0:00:04]}  Rc8 {[%clk 0:00:53]} 39. Kd3 {[%clk 0:00:04]}  Ra8 {[%clk 0:00:49]} 40. Be1 {[%clk 0:00:03]}  Kd8 {[%clk 0:00:39]} 41. g3 {[%clk 0:00:03]}  Kc8 {[%clk 0:00:37]} 42. c4 {[%clk 0:00:03]}  Kb8 {[%clk 0:00:36]} 43. Ra1 {[%clk 0:00:03]}  Ka7 {[%clk 0:00:36]} 44. Rb1 {[%clk 0:00:01]}  Rg8 {[%clk 0:00:36]} 45. Rb7+ {[%clk 0:00:01]}  Ka8 {[%clk 0:00:35]} 46. Rxc7 {[%clk 0:00:02]}  Rxg3+ {[%clk 0:00:35]} 47. Bxg3 {[%clk 0:00:02]}  Bg5 {[%clk 0:00:32]} 48. Rd7 {[%clk 0:00:03]}  h4 {[%clk 0:00:32]} 49. Rd8+ {[%clk 0:00:04]}  Ka7 {[%clk 0:00:32]} 50. Bh2 {[%clk 0:00:05]}  Kb6 {[%clk 0:00:31]} 51. Nxe6 {[%clk 0:00:05]}  Bc1 {[%clk 0:00:29]} 52. Rb8+ {[%clk 0:00:06]}  Ka5 {[%clk 0:00:29]} 53. Rb1 {[%clk 0:00:07]}  Bh6 {[%clk 0:00:29]} 54. Nc5 {[%clk 0:00:08]}  h3 {[%clk 0:00:22]} 55. Kc3 {[%clk 0:00:07]}  Bf8 {[%clk 0:00:19]} 56. Ra1+ {[%clk 0:00:07]}  Kb6 {[%clk 0:00:18]} 57. Rxa6+ {[%clk 0:00:08]}  Kc7 {[%clk 0:00:18]} 58. Ra8 {[%clk 0:00:08]}  Bh6 {[%clk 0:00:17]} 59. Ne6+ {[%clk 0:00:08]}  Kb7 {[%clk 0:00:16]} 60. Rh8 {[%clk 0:00:08]}  Bc1 {[%clk 0:00:14]} 61. Rxh3 {[%clk 0:00:08]}  Kc6 {[%clk 0:00:13]} 62. Kc2 {[%clk 0:00:09]}  Ba3 {[%clk 0:00:07]} 63. d5+ {[%clk 0:00:09]}  Kd7 {[%clk 0:00:06]} 64. Rxa3 {[%clk 0:00:10]}  Ke8 {[%clk 0:00:06]} 65. Ra8+ {[%clk 0:00:10]}  Kf7 {[%clk 0:00:07]} 66. Rf8+ {[%clk 0:00:11]}  Kg6 {[%clk 0:00:07]} 67. c5 {[%clk 0:00:11]}  Kh5 {[%clk 0:00:06]} 68. Rg8 {[%clk 0:00:10]} 1-0


[Site "https://www.chess.com"]

[Event "Titled Tuesday Blitz June 14 Late 2022"]
[White "Sanchez Alvares, Kelvin Antonio"]
[Black "Quiroga Jaquez, Angel Ivan"]
[WhiteFideId "3906680"]
[BlackFideId "5117801"]
[WhiteElo "2193"]
[BlackElo "1833"]
[Result "1/2-1/2"]
[Round "09"]
[TimeControl "180+1"]
[Date "2022.06.15"]
[WhiteClock "0:00:37"]
[BlackClock "0:00:15"]

1. e4 {[%clk 0:03:00]}  e5 {[%clk 0:02:59]} 2. Nf3 {[%clk 0:02:59]}  Nc6 {[%clk 0:02:58]} 3. Bb5 {[%clk 0:02:58]}  a6 {[%clk 0:02:58]} 4. Ba4 {[%clk 0:02:58]}  d6 {[%clk 0:02:57]} 5. c4 {[%clk 0:02:57]}  Bd7 {[%clk 0:02:57]} 6. Nc3 {[%clk 0:02:56]}  g6 {[%clk 0:02:56]} 7. Bxc6 {[%clk 0:02:52]}  Bxc6 {[%clk 0:02:55]} 8. d4 {[%clk 0:02:53]}  exd4 {[%clk 0:02:54]} 9. Qxd4 {[%clk 0:02:52]}  Qf6 {[%clk 0:02:54]} 10. Bg5 {[%clk 0:02:49]}  Qxd4 {[%clk 0:02:50]} 11. Nxd4 {[%clk 0:02:49]}  Bg7 {[%clk 0:02:50]} 12. Nxc6 {[%clk 0:02:48]}  bxc6 {[%clk 0:02:49]} 13. Bd2 {[%clk 0:02:47]}  Ne7 {[%clk 0:02:45]} 14. O-O-O {[%clk 0:02:46]}  O-O {[%clk 0:02:43]} 15. Rhe1 {[%clk 0:02:46]}  Rab8 {[%clk 0:02:38]} 16. b3 {[%clk 0:02:45]}  f5 {[%clk 0:02:24]} 17. f3 {[%clk 0:02:39]}  fxe4 {[%clk 0:02:21]} 18. Nxe4 {[%clk 0:02:35]}  Nf5 {[%clk 0:02:10]} 19. Ba5 {[%clk 0:02:32]}  Rbc8 {[%clk 0:01:58]} 20. Kb1 {[%clk 0:02:27]}  h6 {[%clk 0:01:50]} 21. Ng3 {[%clk 0:02:10]}  Nxg3 {[%clk 0:01:45]} 22. hxg3 {[%clk 0:02:11]}  Kf7 {[%clk 0:01:42]} 23. g4 {[%clk 0:02:06]}  c5 {[%clk 0:01:40]} 24. Kc2 {[%clk 0:02:03]}  Bd4 {[%clk 0:01:40]} 25. Re2 {[%clk 0:02:02]}  c6 {[%clk 0:01:39]} 26. Rh1 {[%clk 0:01:59]}  Rce8 {[%clk 0:01:33]} 27. Rxe8 {[%clk 0:01:56]}  Rxe8 {[%clk 0:01:34]} 28. Kd1 {[%clk 0:01:55]}  Kg7 {[%clk 0:01:33]} 29. Bd2 {[%clk 0:01:53]}  g5 {[%clk 0:01:31]} 30. g3 {[%clk 0:01:50]}  d5 {[%clk 0:01:18]} 31. Re1 {[%clk 0:01:39]}  Rxe1+ {[%clk 0:01:14]} 32. Kxe1 {[%clk 0:01:38]}  dxc4 {[%clk 0:01:13]} 33. bxc4 {[%clk 0:01:38]}  Kf7 {[%clk 0:00:56]} 34. Ke2 {[%clk 0:01:36]}  Ke6 {[%clk 0:00:56]} 35. Kd3 {[%clk 0:01:36]}  Bf2 {[%clk 0:00:49]} 36. f4 {[%clk 0:01:32]}  Bxg3 {[%clk 0:00:47]} 37. fxg5 {[%clk 0:01:32]}  hxg5 {[%clk 0:00:47]} 38. Bxg5 {[%clk 0:01:31]}  Ke5 {[%clk 0:00:43]} 39. Ke3 {[%clk 0:01:22]}  Be1 {[%clk 0:00:39]} 40. Be7 {[%clk 0:01:18]}  Bb4 {[%clk 0:00:37]} 41. Bf8 {[%clk 0:01:14]}  Ba3 {[%clk 0:00:37]} 42. Bg7+ {[%clk 0:01:12]}  Ke6 {[%clk 0:00:36]} 43. Ke4 {[%clk 0:01:13]}  Bc1 {[%clk 0:00:37]} 44. Bf8 {[%clk 0:01:12]}  Ba3 {[%clk 0:00:35]} 45. g5 {[%clk 0:01:12]}  Bc1 {[%clk 0:00:35]} 46. g6 {[%clk 0:01:10]}  Bb2 {[%clk 0:00:34]} 47. Bxc5 {[%clk 0:01:05]}  Bc1 {[%clk 0:00:29]} 48. Bd4 {[%clk 0:01:04]}  Bd2 {[%clk 0:00:26]} 49. Be5 {[%clk 0:01:03]}  Bc1 {[%clk 0:00:25]} 50. g7 {[%clk 0:01:03]}  Kf7 {[%clk 0:00:25]} 51. Kf5 {[%clk 0:01:03]}  Ba3 {[%clk 0:00:23]} 52. g8=Q+ {[%clk 0:00:49]}  Kxg8 {[%clk 0:00:23]} 53. Ke6 {[%clk 0:00:50]}  Bb4 {[%clk 0:00:18]} 54. Kd7 {[%clk 0:00:47]}  Kf7 {[%clk 0:00:19]} 55. Kxc6 {[%clk 0:00:47]}  Ke6 {[%clk 0:00:20]} 56. Bd4 {[%clk 0:00:46]}  Bd2 {[%clk 0:00:19]} 57. Kb6 {[%clk 0:00:44]}  a5 {[%clk 0:00:15]} 58. Kb5 {[%clk 0:00:45]}  Kd6 {[%clk 0:00:15]} 59. Bb6 {[%clk 0:00:44]}  a4 {[%clk 0:00:12]} 60. Kxa4 {[%clk 0:00:41]}  Kc6 {[%clk 0:00:13]} 61. Bd4 {[%clk 0:00:41]}  Bf4 {[%clk 0:00:13]} 62. Kb3 {[%clk 0:00:40]}  Bd6 {[%clk 0:00:12]} 63. a4 {[%clk 0:00:40]}  Kb7 {[%clk 0:00:13]} 64. c5 {[%clk 0:00:39]}  Bxc5 {[%clk 0:00:12]} 65. Bxc5 {[%clk 0:00:38]}  Ka8 {[%clk 0:00:13]} 66. Kb4 {[%clk 0:00:37]}  Kb7 {[%clk 0:00:14]} 67. Kb5 {[%clk 0:00:38]}  Ka8 {[%clk 0:00:15]} 68. Ka6 {[%clk 0:00:38]}  Kb8 {[%clk 0:00:15]} 69. Be7 {[%clk 0:00:37]}  Ka8 {[%clk 0:00:15]} 70. Bd6 {[%clk 0:00:37]} 1/2-1/2


[Site "https://www.chess.com"]

[Event "Titled Tuesday Blitz June 14 Late 2022"]
[White "Sargsyan, Anna M."]
[Black "Girsh, Daniel"]
[WhiteFideId "13308130"]
[BlackFideId "30949190"]
[WhiteElo "2271"]
[BlackElo "2513"]
[Result "1-0"]
[Round "09"]
[TimeControl "180+1"]
[Date "2022.06.14"]
[WhiteClock "0:00:25"]
[BlackClock "0:01:19"]

1. d4 {[%clk 0:03:00]}  Nf6 {[%clk 0:02:59]} 2. c4 {[%clk 0:03:00]}  e6 {[%clk 0:03:00]} 3. Nf3 {[%clk 0:03:00]}  d5 {[%clk 0:02:59]} 4. Nc3 {[%clk 0:02:58]}  c6 {[%clk 0:02:58]} 5. e3 {[%clk 0:02:55]}  Nbd7 {[%clk 0:02:55]} 6. Bd3 {[%clk 0:02:55]}  Bd6 {[%clk 0:02:50]} 7. Qc2 {[%clk 0:02:41]}  dxc4 {[%clk 0:02:49]} 8. Bxc4 {[%clk 0:02:41]}  b5 {[%clk 0:02:50]} 9. Bd3 {[%clk 0:02:41]}  O-O {[%clk 0:02:50]} 10. e4 {[%clk 0:02:41]}  e5 {[%clk 0:02:49]} 11. Bg5 {[%clk 0:02:40]}  h6 {[%clk 0:02:45]} 12. Bh4 {[%clk 0:02:40]}  exd4 {[%clk 0:02:41]} 13. Nxd4 {[%clk 0:02:40]}  Ne5 {[%clk 0:02:38]} 14. O-O-O {[%clk 0:02:37]}  b4 {[%clk 0:02:31]} 15. Na4 {[%clk 0:02:37]}  c5 {[%clk 0:02:31]} 16. Nb5 {[%clk 0:02:31]}  Qe7 {[%clk 0:01:49]} 17. Be2 {[%clk 0:02:02]}  Bb8 {[%clk 0:01:43]} 18. Qxc5 {[%clk 0:01:53]}  Qe6 {[%clk 0:01:35]} 19. Kb1 {[%clk 0:01:37]}  Nxe4 {[%clk 0:01:28]} 20. Qxf8+ {[%clk 0:01:12]}  Kxf8 {[%clk 0:01:27]} 21. Rd8+ {[%clk 0:01:13]}  Qe8 {[%clk 0:01:27]} 22. Rxe8+ {[%clk 0:01:11]}  Kxe8 {[%clk 0:01:27]} 23. Rd1 {[%clk 0:00:34]}  Bf5 {[%clk 0:01:19]} 24. Rd8# {[%clk 0:00:25]} 1-0


[Site "https://www.chess.com"]

[Event "Titled Tuesday Blitz June 14 Late 2022"]
[White "Sjugirov, Sanan"]
[Black "Babazada, Khazar"]
[WhiteFideId "4189302"]
[BlackFideId "13413554"]
[WhiteElo "2602"]
[BlackElo "2406"]
[Result "0-1"]
[Round "09"]
[TimeControl "180+1"]
[Date "2022.06.14"]
[WhiteClock "0:00:02"]
[BlackClock "0:00:04"]

1. e4 {[%clk 0:03:00]}  Nf6 {[%clk 0:03:00]} 2. e5 {[%clk 0:03:00]}  Nd5 {[%clk 0:03:00]} 3. d4 {[%clk 0:03:01]}  Nb6 {[%clk 0:03:00]} 4. c4 {[%clk 0:03:00]}  d6 {[%clk 0:03:01]} 5. exd6 {[%clk 0:03:00]}  cxd6 {[%clk 0:03:00]} 6. Nc3 {[%clk 0:03:00]}  g6 {[%clk 0:03:01]} 7. Nf3 {[%clk 0:02:52]}  Bg7 {[%clk 0:03:01]} 8. Be2 {[%clk 0:02:46]}  O-O {[%clk 0:03:02]} 9. Bg5 {[%clk 0:02:43]}  Bg4 {[%clk 0:02:57]} 10. Rc1 {[%clk 0:02:34]}  Nc6 {[%clk 0:02:56]} 11. d5 {[%clk 0:02:29]}  Bxf3 {[%clk 0:02:55]} 12. Bxf3 {[%clk 0:02:29]}  Ne5 {[%clk 0:02:46]} 13. b3 {[%clk 0:02:28]}  h6 {[%clk 0:02:46]} 14. Be3 {[%clk 0:02:27]}  Nxf3+ {[%clk 0:02:47]} 15. Qxf3 {[%clk 0:02:26]}  a5 {[%clk 0:02:43]} 16. a4 {[%clk 0:02:23]}  Nd7 {[%clk 0:02:39]} 17. O-O {[%clk 0:02:20]}  Ne5 {[%clk 0:02:17]} 18. Qe2 {[%clk 0:02:19]}  f5 {[%clk 0:02:17]} 19. f3 {[%clk 0:02:15]}  g5 {[%clk 0:02:12]} 20. Nb5 {[%clk 0:02:14]}  f4 {[%clk 0:02:02]} 21. Bf2 {[%clk 0:02:14]}  g4 {[%clk 0:02:02]} 22. Nd4 {[%clk 0:02:13]}  gxf3 {[%clk 0:01:45]} 23. gxf3 {[%clk 0:02:12]}  Qe8 {[%clk 0:01:45]} 24. Kh1 {[%clk 0:02:09]}  Qh5 {[%clk 0:01:45]} 25. Rg1 {[%clk 0:02:09]}  Kh8 {[%clk 0:01:46]} 26. Rg2 {[%clk 0:02:03]}  Bf6 {[%clk 0:01:44]} 27. Rcg1 {[%clk 0:02:02]}  Rg8 {[%clk 0:01:44]} 28. Qe4 {[%clk 0:01:58]}  Bg5 {[%clk 0:01:37]} 29. Be1 {[%clk 0:01:47]}  b6 {[%clk 0:01:35]} 30. Bc3 {[%clk 0:01:41]}  Bf6 {[%clk 0:00:53]} 31. Rxg8+ {[%clk 0:01:40]}  Rxg8 {[%clk 0:00:52]} 32. Rxg8+ {[%clk 0:01:40]}  Kxg8 {[%clk 0:00:53]} 33. Qxf4 {[%clk 0:01:37]}  Nxf3 {[%clk 0:00:53]} 34. Qxf3 {[%clk 0:00:51]}  Qxf3+ {[%clk 0:00:53]} 35. Nxf3 {[%clk 0:00:52]}  Bxc3 {[%clk 0:00:53]} 36. Kg2 {[%clk 0:00:52]}  Kf7 {[%clk 0:00:48]} 37. Kg3 {[%clk 0:00:53]}  e6 {[%clk 0:00:48]} 38. Kf4 {[%clk 0:00:50]}  Kf6 {[%clk 0:00:46]} 39. dxe6 {[%clk 0:00:48]}  Kxe6 {[%clk 0:00:47]} 40. Ke4 {[%clk 0:00:49]}  Bf6 {[%clk 0:00:45]} 41. h3 {[%clk 0:00:45]}  Be5 {[%clk 0:00:42]} 42. Nh4 {[%clk 0:00:42]}  h5 {[%clk 0:00:29]} 43. Nf5 {[%clk 0:00:39]}  Kf6 {[%clk 0:00:30]} 44. Ne3 {[%clk 0:00:34]}  Kg5 {[%clk 0:00:30]} 45. Kf3 {[%clk 0:00:20]}  Bd4 {[%clk 0:00:30]} 46. Ng2 {[%clk 0:00:19]}  Bc5 {[%clk 0:00:26]} 47. h4+ {[%clk 0:00:13]}  Kf5 {[%clk 0:00:14]} 48. Nf4 {[%clk 0:00:14]}  d5 {[%clk 0:00:11]} 49. Nxd5 {[%clk 0:00:07]}  Ke5 {[%clk 0:00:11]} 50. Nf4 {[%clk 0:00:02]}  Kd4 {[%clk 0:00:11]} 51. Nxh5 {[%clk 0:00:02]}  Kc3 {[%clk 0:00:10]} 52. Ke4 {[%clk 0:00:01]}  Kxb3 {[%clk 0:00:10]} 53. Kd3 {[%clk 0:00:02]}  Be7 {[%clk 0:00:06]} 54. Nf4 {[%clk 0:00:02]}  Bxh4 {[%clk 0:00:06]} 55. Nd5 {[%clk 0:00:02]}  Bf2 {[%clk 0:00:06]} 56. Nc3 {[%clk 0:00:03]}  Bc5 {[%clk 0:00:06]} 57. Nd5 {[%clk 0:00:02]}  Kxa4 {[%clk 0:00:06]} 58. Kc3 {[%clk 0:00:03]}  Ka3 {[%clk 0:00:06]} 59. Nf4 {[%clk 0:00:02]}  Bb4+ {[%clk 0:00:04]} 60. Kc2 {[%clk 0:00:02]}  Bc5 {[%clk 0:00:05]} 61. Nd3 {[%clk 0:00:03]}  a4 {[%clk 0:00:04]} 62. Kc3 {[%clk 0:00:03]}  Bd6 {[%clk 0:00:04]} 63. Kc2 {[%clk 0:00:03]}  Bb4 {[%clk 0:00:03]} 64. Nc1 {[%clk 0:00:02]}  Bc5 {[%clk 0:00:02]} 65. Nd3 {[%clk 0:00:03]}  Bd4 {[%clk 0:00:03]} 66. Nf4 {[%clk 0:00:01]}  Kb4 {[%clk 0:00:03]} 67. Kd3 {[%clk 0:00:01]}  Bc5 {[%clk 0:00:03]} 68. Nd5+ {[%clk 0:00:01]}  Kb3 {[%clk 0:00:03]} 69. Nc3 {[%clk 0:00:01]}  a3 {[%clk 0:00:04]} 70. Nb1 {[%clk 0:00:02]}  a2 {[%clk 0:00:04]} 0-1


[Site "https://www.chess.com"]

[Event "Titled Tuesday Blitz June 14 Late 2022"]
[White "Weisz, Bryan"]
[Black "Gallegos Diaz, Carlos Alberto"]
[WhiteFideId "30934133"]
[BlackFideId "3900886"]
[WhiteElo "2258"]
[BlackElo "2362"]
[Result "1-0"]
[Round "09"]
[TimeControl "180+1"]
[Date "2022.06.15"]
[WhiteClock "0:00:12"]
[BlackClock "0:00:13"]

1. e4 {[%clk 0:02:57]}  d6 {[%clk 0:03:00]} 2. d4 {[%clk 0:02:57]}  Nf6 {[%clk 0:03:00]} 3. Nc3 {[%clk 0:02:58]}  c6 {[%clk 0:03:01]} 4. Bg5 {[%clk 0:02:57]}  Nbd7 {[%clk 0:03:00]} 5. Nf3 {[%clk 0:02:47]}  Qa5 {[%clk 0:03:00]} 6. Bd3 {[%clk 0:02:39]}  e5 {[%clk 0:02:59]} 7. O-O {[%clk 0:02:31]}  Be7 {[%clk 0:02:58]} 8. Ne2 {[%clk 0:02:31]}  O-O {[%clk 0:02:55]} 9. Ng3 {[%clk 0:02:31]}  Re8 {[%clk 0:02:47]} 10. Nf5 {[%clk 0:02:31]}  Bf8 {[%clk 0:02:47]} 11. dxe5 {[%clk 0:02:22]}  dxe5 {[%clk 0:02:46]} 12. Bc4 {[%clk 0:02:21]}  Nxe4 {[%clk 0:02:31]} 13. Re1 {[%clk 0:02:05]}  Ndf6 {[%clk 0:02:16]} 14. Bxf6 {[%clk 0:01:55]}  Bxf5 {[%clk 0:02:15]} 15. Bxe5 {[%clk 0:01:50]}  Qc5 {[%clk 0:01:41]} 16. Qd4 {[%clk 0:01:45]}  Rad8 {[%clk 0:01:16]} 17. Qxc5 {[%clk 0:01:42]}  Bxc5 {[%clk 0:01:17]} 18. Bg3 {[%clk 0:01:28]}  Nxg3 {[%clk 0:01:13]} 19. hxg3 {[%clk 0:01:29]}  Rxe1+ {[%clk 0:01:11]} 20. Rxe1 {[%clk 0:01:29]}  Bxc2 {[%clk 0:01:11]} 21. Rc1 {[%clk 0:01:13]}  Rd1+ {[%clk 0:01:08]} 22. Rxd1 {[%clk 0:01:12]}  Bxd1 {[%clk 0:01:08]} 23. Ne5 {[%clk 0:01:06]}  Bh5 {[%clk 0:00:53]} 24. g4 {[%clk 0:01:07]}  Bg6 {[%clk 0:00:53]} 25. Nxg6 {[%clk 0:00:59]}  hxg6 {[%clk 0:00:54]} 26. Kf1 {[%clk 0:00:59]}  Kf8 {[%clk 0:00:54]} 27. Ke2 {[%clk 0:01:00]}  Ke7 {[%clk 0:00:54]} 28. f3 {[%clk 0:00:58]}  Bd4 {[%clk 0:00:53]} 29. b3 {[%clk 0:00:53]}  b5 {[%clk 0:00:53]} 30. Bd3 {[%clk 0:00:53]}  Kd6 {[%clk 0:00:52]} 31. Bb1 {[%clk 0:00:50]}  Ke5 {[%clk 0:00:46]} 32. g3 {[%clk 0:00:47]}  c5 {[%clk 0:00:28]} 33. f4+ {[%clk 0:00:47]}  Kd5 {[%clk 0:00:28]} 34. Kf3 {[%clk 0:00:43]}  c4 {[%clk 0:00:27]} 35. bxc4+ {[%clk 0:00:38]}  Kxc4 {[%clk 0:00:26]} 36. Bc2 {[%clk 0:00:38]}  a5 {[%clk 0:00:25]} 37. Bb3+ {[%clk 0:00:39]}  Kc3 {[%clk 0:00:25]} 38. Bxf7 {[%clk 0:00:39]}  a4 {[%clk 0:00:26]} 39. Bxg6 {[%clk 0:00:28]}  b4 {[%clk 0:00:26]} 40. Bf7 {[%clk 0:00:25]}  b3 {[%clk 0:00:23]} 41. axb3 {[%clk 0:00:25]}  axb3 {[%clk 0:00:23]} 42. g5 {[%clk 0:00:16]}  Kc2 {[%clk 0:00:20]} 43. f5 {[%clk 0:00:13]}  b2 {[%clk 0:00:20]} 44. Ba2 {[%clk 0:00:13]}  b1=Q {[%clk 0:00:19]} 45. Bxb1+ {[%clk 0:00:13]}  Kxb1 {[%clk 0:00:20]} 46. Ke4 {[%clk 0:00:12]}  Bc3 {[%clk 0:00:17]} 47. Kd5 {[%clk 0:00:13]}  Bd2 {[%clk 0:00:16]} 48. g6 {[%clk 0:00:09]}  Bg5 {[%clk 0:00:14]} 49. Ke6 {[%clk 0:00:09]}  Kc2 {[%clk 0:00:13]} 50. Kf7 {[%clk 0:00:10]}  Bf6 {[%clk 0:00:13]} 51. g4 {[%clk 0:00:11]}  Kd3 {[%clk 0:00:13]} 52. g5 {[%clk 0:00:11]}  Bxg5 {[%clk 0:00:12]} 53. Kxg7 {[%clk 0:00:12]}  Ke4 {[%clk 0:00:12]} 54. f6 {[%clk 0:00:12]}  Kf5 {[%clk 0:00:12]} 55. f7 {[%clk 0:00:13]}  Be7 {[%clk 0:00:13]} 56. Kh7 {[%clk 0:00:11]}  Ke6 {[%clk 0:00:12]} 57. g7 {[%clk 0:00:11]}  Kxf7 {[%clk 0:00:13]} 58. g8=Q+ {[%clk 0:00:12]}  Kf6 {[%clk 0:00:13]} 59. Qg6+ {[%clk 0:00:12]} 1-0


[Site "https://www.chess.com"]

[Event "Titled Tuesday Blitz June 14 Late 2022"]
[White "Yuan, Qingyu"]
[Black "Holt, Conrad"]
[WhiteFideId "8609772"]
[BlackFideId "2034387"]
[WhiteElo "2359"]
[BlackElo "2586"]
[Result "0-1"]
[Round "09"]
[TimeControl "180+1"]
[Date "2022.06.14"]
[WhiteClock "0:00:27"]
[BlackClock "0:02:27"]

1. e4 {[%clk 0:03:00]}  e6 {[%clk 0:03:00]} 2. d4 {[%clk 0:03:01]}  d5 {[%clk 0:03:00]} 3. e5 {[%clk 0:03:01]}  c5 {[%clk 0:03:00]} 4. c3 {[%clk 0:03:02]}  Nc6 {[%clk 0:03:01]} 5. Nf3 {[%clk 0:03:03]}  Bd7 {[%clk 0:03:00]} 6. Be2 {[%clk 0:03:03]}  f6 {[%clk 0:02:58]} 7. O-O {[%clk 0:02:56]}  fxe5 {[%clk 0:02:58]} 8. Nxe5 {[%clk 0:02:56]}  Nf6 {[%clk 0:02:58]} 9. Bh5+ {[%clk 0:02:28]}  g6 {[%clk 0:02:57]} 10. Nxg6 {[%clk 0:02:27]}  hxg6 {[%clk 0:02:56]} 11. Bxg6+ {[%clk 0:02:28]}  Ke7 {[%clk 0:02:57]} 12. Bg5 {[%clk 0:02:22]}  Bh6 {[%clk 0:02:52]} 13. f4 {[%clk 0:02:07]}  Qg8 {[%clk 0:02:48]} 14. Qd3 {[%clk 0:02:02]}  c4 {[%clk 0:02:45]} 15. Qc2 {[%clk 0:02:00]}  Be8 {[%clk 0:02:45]} 16. Bxf6+ {[%clk 0:01:17]}  Kxf6 {[%clk 0:02:46]} 17. f5 {[%clk 0:01:08]}  Be3+ {[%clk 0:02:46]} 18. Kh1 {[%clk 0:01:08]}  e5 {[%clk 0:02:46]} 19. dxe5+ {[%clk 0:01:02]}  Nxe5 {[%clk 0:02:46]} 20. Qe2 {[%clk 0:00:54]}  Rxh2+ {[%clk 0:02:36]} 21. Kxh2 {[%clk 0:00:53]}  Qh8+ {[%clk 0:02:36]} 22. Kg3 {[%clk 0:00:52]}  Qh6 {[%clk 0:02:36]} 23. Qh5 {[%clk 0:00:47]}  Qxh5 {[%clk 0:02:35]} 24. Bxh5 {[%clk 0:00:45]}  Bxh5 {[%clk 0:02:35]} 25. Na3 {[%clk 0:00:43]}  Rg8+ {[%clk 0:02:34]} 26. Kh2 {[%clk 0:00:42]}  Be2 {[%clk 0:02:29]} 27. Nc2 {[%clk 0:00:31]}  Ng4+ {[%clk 0:02:28]} 28. Kh3 {[%clk 0:00:30]}  Nf2+ {[%clk 0:02:27]} 29. Kh2 {[%clk 0:00:27]}  Rh8+ {[%clk 0:02:27]} 0-1


[Site "https://www.chess.com"]

[Event "Titled Tuesday Blitz June 14 Late 2022"]
[White "Zhou, Liran"]
[Black "Kalajzic, Ivan"]
[WhiteFideId "30931967"]
[BlackFideId "14506378"]
[WhiteElo "2626"]
[BlackElo "2163"]
[Result "1-0"]
[Round "09"]
[TimeControl "180+1"]
[Date "2022.06.15"]
[WhiteClock "0:00:11"]
[BlackClock "0:00:08"]

1. e4 {[%clk 0:03:00]}  Nc6 {[%clk 0:02:58]} 2. Nf3 {[%clk 0:02:59]}  d6 {[%clk 0:02:58]} 3. d4 {[%clk 0:02:58]}  g6 {[%clk 0:02:58]} 4. d5 {[%clk 0:02:55]}  Nb8 {[%clk 0:02:55]} 5. Nc3 {[%clk 0:02:54]}  Bg7 {[%clk 0:02:55]} 6. Bc4 {[%clk 0:02:52]}  e5 {[%clk 0:02:50]} 7. dxe6 {[%clk 0:02:50]}  Bxe6 {[%clk 0:02:51]} 8. Bxe6 {[%clk 0:02:45]}  fxe6 {[%clk 0:02:50]} 9. O-O {[%clk 0:02:45]}  Nc6 {[%clk 0:02:43]} 10. Bf4 {[%clk 0:02:21]}  e5 {[%clk 0:02:30]} 11. Be3 {[%clk 0:02:04]}  Qd7 {[%clk 0:02:18]} 12. Rb1 {[%clk 0:01:54]}  Nf6 {[%clk 0:02:12]} 13. Bg5 {[%clk 0:01:53]}  O-O {[%clk 0:02:07]} 14. Nd5 {[%clk 0:01:43]}  Nxd5 {[%clk 0:01:43]} 15. exd5 {[%clk 0:01:43]}  Ne7 {[%clk 0:01:39]} 16. Bxe7 {[%clk 0:01:42]}  Qxe7 {[%clk 0:01:39]} 17. Nd2 {[%clk 0:01:43]}  Rf4 {[%clk 0:01:33]} 18. Qe2 {[%clk 0:01:17]}  Raf8 {[%clk 0:01:20]} 19. Ne4 {[%clk 0:01:10]}  a6 {[%clk 0:01:20]} 20. f3 {[%clk 0:01:00]}  h5 {[%clk 0:01:16]} 21. g3 {[%clk 0:00:53]}  R4f7 {[%clk 0:01:15]} 22. h4 {[%clk 0:00:52]}  Bh6 {[%clk 0:01:15]} 23. Kg2 {[%clk 0:00:51]}  Kg7 {[%clk 0:01:11]} 24. c4 {[%clk 0:00:41]}  b6 {[%clk 0:01:08]} 25. Rf2 {[%clk 0:00:39]}  Rf5 {[%clk 0:01:07]} 26. Rh1 {[%clk 0:00:37]}  Qf7 {[%clk 0:01:03]} 27. Qd3 {[%clk 0:00:34]}  a5 {[%clk 0:00:58]} 28. Rhf1 {[%clk 0:00:34]}  g5 {[%clk 0:00:54]} 29. hxg5 {[%clk 0:00:32]}  Bxg5 {[%clk 0:00:54]} 30. g4 {[%clk 0:00:32]}  hxg4 {[%clk 0:00:48]} 31. fxg4 {[%clk 0:00:32]}  Rxf2+ {[%clk 0:00:46]} 32. Rxf2 {[%clk 0:00:32]}  Bf4 {[%clk 0:00:46]} 33. Ng5 {[%clk 0:00:28]}  Bxg5 {[%clk 0:00:21]} 34. Rxf7+ {[%clk 0:00:29]}  Rxf7 {[%clk 0:00:22]} 35. b3 {[%clk 0:00:23]}  Rf4 {[%clk 0:00:21]} 36. Kg3 {[%clk 0:00:20]}  Bh6 {[%clk 0:00:14]} 37. Qe2 {[%clk 0:00:18]}  Bg5 {[%clk 0:00:13]} 38. Qh2 {[%clk 0:00:16]}  e4 {[%clk 0:00:10]} 39. Qh5 {[%clk 0:00:16]}  Rf3+ {[%clk 0:00:10]} 40. Kg2 {[%clk 0:00:16]}  Bf4 {[%clk 0:00:08]} 41. Qe8 {[%clk 0:00:15]}  Rg3+ {[%clk 0:00:08]} 42. Kf1 {[%clk 0:00:12]}  e3 {[%clk 0:00:08]} 43. Qe7+ {[%clk 0:00:11]}  Kg6 {[%clk 0:00:08]} 44. Qe6+ {[%clk 0:00:12]}  Kg5 {[%clk 0:00:08]} 45. Qf5+ {[%clk 0:00:11]}  Kh4 {[%clk 0:00:08]} 46. Qh5# {[%clk 0:00:11]} 1-0


[Site "https://www.chess.com"]